[Event "Titled Tuesday Blitz April 18 Late 2023"]
[White "Sarkar, Justin"]
[Black "Domingo Nunez, Ruben"]
[WhiteFideId "2010011"]
[BlackFideId "22245570"]
[WhiteElo "2189"]
[BlackElo "2404"]
[Result "0-1"]
[Round "01"]
[TimeControl "180+2"]
[Date "2023.04.18"]
[WhiteClock "0:00:01"]
[BlackClock "0:01:43"]

1. d4 {[%clk 0:02:43]}  g6 {[%clk 0:03:00]} 2. e4 {[%clk 0:02:40]}  Bg7 {[%clk 0:03:00]} 3. c4 {[%clk 0:02:35]}  d6 {[%clk 0:03:00]} 4. Nc3 {[%clk 0:02:31]}  Nd7 {[%clk 0:03:01]} 5. Be3 {[%clk 0:02:16]}  e5 {[%clk 0:03:01]} 6. Nge2 {[%clk 0:02:08]}  Ngf6 {[%clk 0:03:01]} 7. f3 {[%clk 0:02:03]}  O-O {[%clk 0:03:01]} 8. Qd2 {[%clk 0:01:54]}  exd4 {[%clk 0:03:01]} 9. Nxd4 {[%clk 0:01:53]}  Re8 {[%clk 0:03:02]} 10. Be2 {[%clk 0:01:50]}  Nc5 {[%clk 0:03:00]} 11. O-O {[%clk 0:01:46]}  a5 {[%clk 0:03:00]} 12. b3 {[%clk 0:01:34]}  Bd7 {[%clk 0:03:00]} 13. Rad1 {[%clk 0:01:31]}  Nh5 {[%clk 0:02:59]} 14. Ndb5 {[%clk 0:01:13]}  Ne6 {[%clk 0:02:49]} 15. g4 {[%clk 0:01:01]}  Nf6 {[%clk 0:02:43]} 16. e5 {[%clk 0:00:50]}  dxe5 {[%clk 0:02:43]} 17. g5 {[%clk 0:00:47]}  Bxb5 {[%clk 0:02:25]} 18. Qxd8 {[%clk 0:00:44]}  Raxd8 {[%clk 0:01:59]} 19. gxf6 {[%clk 0:00:43]}  Bxf6 {[%clk 0:02:00]} 20. Nxb5 {[%clk 0:00:39]}  c6 {[%clk 0:02:00]} 21. Nd6 {[%clk 0:00:34]}  Re7 {[%clk 0:02:00]} 22. Ne4 {[%clk 0:00:31]}  Bg7 {[%clk 0:02:01]} 23. Rxd8+ {[%clk 0:00:28]}  Nxd8 {[%clk 0:02:02]} 24. Bg5 {[%clk 0:00:27]}  Rd7 {[%clk 0:02:02]} 25. Nf6+ {[%clk 0:00:23]}  Bxf6 {[%clk 0:02:03]} 26. Bxf6 {[%clk 0:00:23]}  Ne6 {[%clk 0:02:02]} 27. Rd1 {[%clk 0:00:13]}  Nd4 {[%clk 0:02:02]} 28. Kf2 {[%clk 0:00:11]}  c5 {[%clk 0:01:44]} 29. Bxe5 {[%clk 0:00:11]}  b6 {[%clk 0:01:44]} 30. f4 {[%clk 0:00:10]}  Kf8 {[%clk 0:01:44]} 31. Bg4 {[%clk 0:00:09]}  f5 {[%clk 0:01:44]} 32. Bf3 {[%clk 0:00:08]}  Ke7 {[%clk 0:01:44]} 33. Bxd4 {[%clk 0:00:07]}  cxd4 {[%clk 0:01:45]} 34. Bd5 {[%clk 0:00:07]}  Kd6 {[%clk 0:01:45]} 35. Rxd4 {[%clk 0:00:07]}  Kc5 {[%clk 0:01:46]} 36. Rd2 {[%clk 0:00:07]}  a4 {[%clk 0:01:47]} 37. bxa4 {[%clk 0:00:06]}  Ra7 {[%clk 0:01:48]} 38. Rb2 {[%clk 0:00:05]}  Rxa4 {[%clk 0:01:48]} 39. Rb5+ {[%clk 0:00:05]}  Kd4 {[%clk 0:01:49]} 40. Rxb6 {[%clk 0:00:05]}  Rxa2+ {[%clk 0:01:49]} 41. Kg3 {[%clk 0:00:05]}  Ra3+ {[%clk 0:01:50]} 42. Kh4 {[%clk 0:00:05]}  Ke3 {[%clk 0:01:51]} 43. Kg5 {[%clk 0:00:04]}  Ra2 {[%clk 0:01:50]} 44. Rb7 {[%clk 0:00:04]}  Rxh2 {[%clk 0:01:50]} 45. Re7+ {[%clk 0:00:03]}  Kd4 {[%clk 0:01:48]} 46. Bg8 {[%clk 0:00:02]}  Rh5+ {[%clk 0:01:46]} 47. Kf6 {[%clk 0:00:02]}  Rh4 {[%clk 0:01:44]} 48. Rxh7 {[%clk 0:00:02]}  Rxf4 {[%clk 0:01:42]} 49. Kxg6 {[%clk 0:00:03]}  Rg4+ {[%clk 0:01:43]} 50. Kf7 {[%clk 0:00:01]}  Kxc4 {[%clk 0:01:42]} 51. Rh5 {[%clk 0:00:01]}  f4 {[%clk 0:01:43]} 52. Bh7 {[%clk 0:00:01]}  Kd4 {[%clk 0:01:43]} 0-1


[Site "https://www.chess.com"]

[Event "Titled Tuesday Blitz April 18 Late 2023"]
[White "Bueno, Alfeu Junior Varela"]
[Black "Sochacki, Christophe"]
[WhiteFideId "2108879"]
[BlackFideId "662569"]
[WhiteElo "2175"]
[BlackElo "2501"]
[Result "0-1"]
[Round "01"]
[TimeControl "180+2"]
[Date "2023.04.18"]
[WhiteClock "0:00:03"]
[BlackClock "0:00:11"]

1. e4 {[%clk 0:02:59]}  e6 {[%clk 0:02:59]} 2. d4 {[%clk 0:02:59]}  d5 {[%clk 0:03:00]} 3. Nd2 {[%clk 0:02:59]}  c5 {[%clk 0:02:59]} 4. exd5 {[%clk 0:02:59]}  exd5 {[%clk 0:02:57]} 5. Bb5+ {[%clk 0:02:57]}  Bd7 {[%clk 0:02:54]} 6. Qe2+ {[%clk 0:02:57]}  Be7 {[%clk 0:02:52]} 7. dxc5 {[%clk 0:02:57]}  Nf6 {[%clk 0:02:52]} 8. Nb3 {[%clk 0:02:50]}  O-O {[%clk 0:02:52]} 9. Be3 {[%clk 0:02:49]}  Re8 {[%clk 0:02:47]} 10. O-O-O {[%clk 0:02:48]}  a5 {[%clk 0:02:28]} 11. a4 {[%clk 0:02:09]}  Nc6 {[%clk 0:02:16]} 12. Qd2 {[%clk 0:01:57]}  Nb4 {[%clk 0:02:01]} 13. c3 {[%clk 0:01:48]}  Bxb5 {[%clk 0:01:56]} 14. axb5 {[%clk 0:01:41]}  Ne4 {[%clk 0:01:54]} 15. Qe1 {[%clk 0:01:27]}  a4 {[%clk 0:01:48]} 16. Nd4 {[%clk 0:01:17]}  a3 {[%clk 0:01:34]} 17. cxb4 {[%clk 0:01:13]}  Bf6 {[%clk 0:00:43]} 18. Ngf3 {[%clk 0:00:34]}  Nxf2 {[%clk 0:00:40]} 19. Qxf2 {[%clk 0:00:32]}  Ra4 {[%clk 0:00:33]} 20. bxa3 {[%clk 0:00:21]}  Rxa3 {[%clk 0:00:33]} 21. Kb2 {[%clk 0:00:21]}  Rexe3 {[%clk 0:00:30]} 22. Rhe1 {[%clk 0:00:09]}  Reb3+ {[%clk 0:00:23]} 23. Kc1 {[%clk 0:00:09]}  Ra1+ {[%clk 0:00:11]} 24. Kd2 {[%clk 0:00:09]}  Ra2+ {[%clk 0:00:12]} 25. Nc2 {[%clk 0:00:09]}  Rxc2+ {[%clk 0:00:10]} 26. Kxc2 {[%clk 0:00:09]}  Rb2+ {[%clk 0:00:11]} 27. Kc1 {[%clk 0:00:08]}  Rxf2 {[%clk 0:00:12]} 28. Rxd5 {[%clk 0:00:08]}  Qa8 {[%clk 0:00:11]} 29. Kb1 {[%clk 0:00:03]} 0-1


[Site "https://www.chess.com"]

[Event "Titled Tuesday Blitz April 18 Late 2023"]
[White "Adla, Diego"]
[Black "Tyagi, Kushan"]
[WhiteFideId "100072"]
[BlackFideId "2040069"]
[WhiteElo "2377"]
[BlackElo "2292"]
[Result "1-0"]
[Round "01"]
[TimeControl "180+2"]
[Date "2023.04.18"]
[WhiteClock "0:01:58"]
[BlackClock "0:00:51"]

1. c4 {[%clk 0:02:59]}  c5 {[%clk 0:02:57]} 2. Nf3 {[%clk 0:02:56]}  Nc6 {[%clk 0:02:55]} 3. d4 {[%clk 0:02:55]}  cxd4 {[%clk 0:02:54]} 4. Nxd4 {[%clk 0:02:54]}  Nf6 {[%clk 0:02:55]} 5. Nc3 {[%clk 0:02:54]}  a6 {[%clk 0:02:54]} 6. e4 {[%clk 0:02:42]}  e6 {[%clk 0:02:48]} 7. Nxc6 {[%clk 0:02:36]}  dxc6 {[%clk 0:02:46]} 8. Qxd8+ {[%clk 0:02:35]}  Kxd8 {[%clk 0:02:45]} 9. Bf4 {[%clk 0:02:34]}  Bc5 {[%clk 0:02:34]} 10. O-O-O+ {[%clk 0:02:32]}  Ke7 {[%clk 0:02:34]} 11. f3 {[%clk 0:02:33]}  b5 {[%clk 0:02:28]} 12. Be2 {[%clk 0:02:29]}  Nd7 {[%clk 0:02:26]} 13. a3 {[%clk 0:02:28]}  e5 {[%clk 0:02:26]} 14. Bd2 {[%clk 0:02:25]}  Nb6 {[%clk 0:02:17]} 15. b4 {[%clk 0:02:25]}  Bd4 {[%clk 0:02:16]} 16. c5 {[%clk 0:02:24]}  Nd7 {[%clk 0:02:14]} 17. Bd3 {[%clk 0:02:21]}  Nf8 {[%clk 0:02:12]} 18. Ne2 {[%clk 0:02:22]}  Ne6 {[%clk 0:02:10]} 19. Bc2 {[%clk 0:02:21]}  f6 {[%clk 0:02:02]} 20. Bb3 {[%clk 0:02:21]}  Rd8 {[%clk 0:02:02]} 21. Kc2 {[%clk 0:02:21]}  Bf2 {[%clk 0:01:50]} 22. f4 {[%clk 0:02:17]}  Nd4+ {[%clk 0:01:45]} 23. Nxd4 {[%clk 0:02:17]}  Bxd4 {[%clk 0:01:39]} 24. h3 {[%clk 0:02:13]}  Be6 {[%clk 0:01:36]} 25. Bxe6 {[%clk 0:02:11]}  Kxe6 {[%clk 0:01:37]} 26. f5+ {[%clk 0:02:09]}  Ke7 {[%clk 0:01:33]} 27. Rhf1 {[%clk 0:02:10]}  Rd7 {[%clk 0:01:32]} 28. g4 {[%clk 0:02:09]}  a5 {[%clk 0:01:27]} 29. bxa5 {[%clk 0:02:06]}  Bxc5 {[%clk 0:01:25]} 30. Bb4 {[%clk 0:02:06]}  Bd6 {[%clk 0:01:01]} 31. Rxd6 {[%clk 0:02:03]}  Rxd6 {[%clk 0:01:01]} 32. Rd1 {[%clk 0:02:03]}  Rd8 {[%clk 0:01:01]} 33. Bc5 {[%clk 0:01:58]}  g5 {[%clk 0:00:51]} 34. a6 {[%clk 0:01:58]}  h6 {[%clk 0:00:51]} 35. a7 {[%clk 0:01:58]} 1-0


[Site "https://www.chess.com"]

[Event "Titled Tuesday Blitz April 18 Late 2023"]
[White "lluiss"]
[Black "Atanasov, Anthony"]
[BlackFideId "2623897"]
[WhiteElo "2287"]
[BlackElo "2326"]
[Result "1-0"]
[Round "01"]
[TimeControl "180+2"]
[Date "2023.04.18"]
[WhiteClock "0:00:15"]
[BlackClock "0:01:22"]

1. Nf3 {[%clk 0:02:59]}  d5 {[%clk 0:02:58]} 2. d4 {[%clk 0:02:57]}  Bf5 {[%clk 0:02:58]} 3. c4 {[%clk 0:02:56]}  e6 {[%clk 0:02:58]} 4. Qb3 {[%clk 0:02:52]}  Nc6 {[%clk 0:02:57]} 5. Bd2 {[%clk 0:02:52]}  Rb8 {[%clk 0:02:57]} 6. g3 {[%clk 0:02:39]}  Nf6 {[%clk 0:02:28]} 7. Bg2 {[%clk 0:02:36]}  Ne4 {[%clk 0:02:28]} 8. O-O {[%clk 0:02:28]}  Be7 {[%clk 0:02:17]} 9. cxd5 {[%clk 0:02:08]}  exd5 {[%clk 0:02:13]} 10. e3 {[%clk 0:02:08]}  O-O {[%clk 0:02:09]} 11. Nc3 {[%clk 0:02:07]}  Na5 {[%clk 0:02:09]} 12. Qxd5 {[%clk 0:01:23]}  Qxd5 {[%clk 0:02:07]} 13. Nxd5 {[%clk 0:01:22]}  Nc4 {[%clk 0:02:07]} 14. Nxe7+ {[%clk 0:01:21]}  Kh8 {[%clk 0:02:05]} 15. Nxf5 {[%clk 0:01:19]}  Nexd2 {[%clk 0:02:04]} 16. Nxd2 {[%clk 0:01:19]}  Nxd2 {[%clk 0:02:05]} 17. Rfd1 {[%clk 0:01:18]}  Nc4 {[%clk 0:02:05]} 18. b3 {[%clk 0:01:17]}  Nb6 {[%clk 0:02:04]} 19. e4 {[%clk 0:01:16]}  Rfe8 {[%clk 0:02:02]} 20. Ne3 {[%clk 0:01:15]}  Nc8 {[%clk 0:02:01]} 21. Rac1 {[%clk 0:01:13]}  c6 {[%clk 0:02:00]} 22. d5 {[%clk 0:01:13]}  cxd5 {[%clk 0:01:58]} 23. Nxd5 {[%clk 0:01:13]}  Nd6 {[%clk 0:01:59]} 24. Rc7 {[%clk 0:01:08]}  Nxe4 {[%clk 0:01:57]} 25. Bxe4 {[%clk 0:01:00]}  Rxe4 {[%clk 0:01:58]} 26. Rxf7 {[%clk 0:00:59]}  Re2 {[%clk 0:01:57]} 27. Ne3 {[%clk 0:00:55]}  h6 {[%clk 0:01:54]} 28. Rdd7 {[%clk 0:00:55]}  Rg8 {[%clk 0:01:52]} 29. Rxb7 {[%clk 0:00:54]}  Rxa2 {[%clk 0:01:52]} 30. Rxa7 {[%clk 0:00:54]}  Rb2 {[%clk 0:01:51]} 31. Ng4 {[%clk 0:00:51]}  h5 {[%clk 0:01:39]} 32. Nh6 {[%clk 0:00:49]}  h4 {[%clk 0:01:31]} 33. Nxg8 {[%clk 0:00:44]}  h3 {[%clk 0:01:30]} 34. Ra1 {[%clk 0:00:32]}  Kxg8 {[%clk 0:01:29]} 35. Rf3 {[%clk 0:00:31]}  Kh7 {[%clk 0:01:28]} 36. g4 {[%clk 0:00:32]}  Kg6 {[%clk 0:01:28]} 37. Rxh3 {[%clk 0:00:32]}  Kg5 {[%clk 0:01:29]} 38. Rg3 {[%clk 0:00:32]}  Kh4 {[%clk 0:01:29]} 39. Kg2 {[%clk 0:00:33]}  g5 {[%clk 0:01:26]} 40. Rh3+ {[%clk 0:00:27]}  Kxg4 {[%clk 0:01:27]} 41. Ra4+ {[%clk 0:00:22]}  Kf5 {[%clk 0:01:28]} 42. Rg3 {[%clk 0:00:22]}  Rb1 {[%clk 0:01:25]} 43. Ra5+ {[%clk 0:00:22]}  Kf4 {[%clk 0:01:25]} 44. Raxg5 {[%clk 0:00:22]}  Ke4 {[%clk 0:01:25]} 45. R5g4+ {[%clk 0:00:21]}  Kf5 {[%clk 0:01:26]} 46. b4 {[%clk 0:00:20]}  Rb2 {[%clk 0:01:26]} 47. b5 {[%clk 0:00:20]}  Kf6 {[%clk 0:01:25]} 48. b6 {[%clk 0:00:20]}  Kf5 {[%clk 0:01:25]} 49. Rg6 {[%clk 0:00:19]}  Kf4 {[%clk 0:01:25]} 50. h4 {[%clk 0:00:19]}  Kf5 {[%clk 0:01:25]} 51. h5 {[%clk 0:00:19]}  Kf4 {[%clk 0:01:25]} 52. h6 {[%clk 0:00:19]}  Rb5 {[%clk 0:01:26]} 53. Rh3 {[%clk 0:00:18]}  Rd5 {[%clk 0:01:24]} 54. h7 {[%clk 0:00:18]}  Rd8 {[%clk 0:01:24]} 55. h8=Q {[%clk 0:00:18]}  Ra8 {[%clk 0:01:22]} 56. Qxa8 {[%clk 0:00:15]} 1-0


[Site "https://www.chess.com"]

[Event "Titled Tuesday Blitz April 18 Late 2023"]
[White "brm72"]
[Black "Rosenberg, Evan S"]
[BlackFideId "2019299"]
[WhiteElo "2614"]
[BlackElo "2286"]
[Result "0-1"]
[Round "01"]
[TimeControl "180+2"]
[Date "2023.04.18"]
[WhiteClock "0:00:01"]
[BlackClock "0:00:07"]

1. d4 {[%clk 0:02:58]}  d5 {[%clk 0:02:59]} 2. c4 {[%clk 0:02:58]}  e6 {[%clk 0:03:00]} 3. Nf3 {[%clk 0:02:58]}  c5 {[%clk 0:02:59]} 4. cxd5 {[%clk 0:02:58]}  exd5 {[%clk 0:03:00]} 5. g3 {[%clk 0:02:59]}  Nf6 {[%clk 0:02:59]} 6. Bg2 {[%clk 0:02:59]}  Nc6 {[%clk 0:02:59]} 7. O-O {[%clk 0:02:59]}  Be7 {[%clk 0:02:59]} 8. b3 {[%clk 0:02:55]}  Ne4 {[%clk 0:02:49]} 9. Bb2 {[%clk 0:02:51]}  Bf6 {[%clk 0:02:45]} 10. e3 {[%clk 0:02:35]}  O-O {[%clk 0:02:40]} 11. Nbd2 {[%clk 0:02:35]}  Bg4 {[%clk 0:02:38]} 12. h3 {[%clk 0:02:32]}  Bh5 {[%clk 0:02:33]} 13. g4 {[%clk 0:02:28]}  Bg6 {[%clk 0:02:33]} 14. Rc1 {[%clk 0:02:28]}  Nb4 {[%clk 0:02:24]} 15. Nxe4 {[%clk 0:02:11]}  dxe4 {[%clk 0:02:23]} 16. Ne1 {[%clk 0:02:01]}  cxd4 {[%clk 0:02:15]} 17. Bxd4 {[%clk 0:01:56]}  Bxd4 {[%clk 0:02:15]} 18. exd4 {[%clk 0:01:57]}  Nxa2 {[%clk 0:02:11]} 19. Rc4 {[%clk 0:01:55]}  a5 {[%clk 0:02:10]} 20. Nc2 {[%clk 0:01:51]}  b5 {[%clk 0:01:51]} 21. Rc5 {[%clk 0:01:50]}  b4 {[%clk 0:01:50]} 22. Re1 {[%clk 0:01:29]}  Nc3 {[%clk 0:01:46]} 23. Qd2 {[%clk 0:01:29]}  Rc8 {[%clk 0:01:36]} 24. Rxc8 {[%clk 0:01:22]}  Qxc8 {[%clk 0:01:37]} 25. Ne3 {[%clk 0:01:20]}  Rd8 {[%clk 0:01:33]} 26. h4 {[%clk 0:01:10]}  h5 {[%clk 0:01:31]} 27. gxh5 {[%clk 0:01:04]}  Bxh5 {[%clk 0:01:27]} 28. Ra1 {[%clk 0:00:58]}  Qc7 {[%clk 0:01:25]} 29. d5 {[%clk 0:00:55]}  Bf3 {[%clk 0:01:18]} 30. Bxf3 {[%clk 0:00:19]}  exf3 {[%clk 0:01:19]} 31. Qd3 {[%clk 0:00:19]}  Qe7 {[%clk 0:00:46]} 32. Qc4 {[%clk 0:00:15]}  Qf6 {[%clk 0:00:34]} 33. Rxa5 {[%clk 0:00:11]}  Qg6+ {[%clk 0:00:30]} 34. Kh2 {[%clk 0:00:10]}  Re8 {[%clk 0:00:25]} 35. Qg4 {[%clk 0:00:09]}  Qd6+ {[%clk 0:00:23]} 36. Qg3 {[%clk 0:00:09]}  Qd8 {[%clk 0:00:17]} 37. Ng4 {[%clk 0:00:08]}  Kh7 {[%clk 0:00:14]} 38. Ra7 {[%clk 0:00:07]}  Qxd5 {[%clk 0:00:13]} 39. h5 {[%clk 0:00:05]}  Ne2 {[%clk 0:00:13]} 40. Qh3 {[%clk 0:00:04]}  Qd6+ {[%clk 0:00:12]} 41. Kh1 {[%clk 0:00:04]}  Nf4 {[%clk 0:00:11]} 42. Qg3 {[%clk 0:00:03]}  Qd1+ {[%clk 0:00:10]} 43. Kh2 {[%clk 0:00:03]}  Re1 {[%clk 0:00:09]} 44. Nf6+ {[%clk 0:00:01]}  Kh6 {[%clk 0:00:07]} 0-1


[Site "https://www.chess.com"]

[Event "Titled Tuesday Blitz April 18 Late 2023"]
[White "Nemsko"]
[Black "Di Berardino, Diego Rafael"]
[BlackFideId "2105446"]
[WhiteElo "2285"]
[BlackElo "2432"]
[Result "0-1"]
[Round "01"]
[TimeControl "180+2"]
[Date "2023.04.18"]
[WhiteClock "0:00:12"]
[BlackClock "0:00:16"]

1. d4 {[%clk 0:03:00]}  d5 {[%clk 0:02:58]} 2. Nc3 {[%clk 0:03:00]}  c5 {[%clk 0:02:54]} 3. dxc5 {[%clk 0:02:46]}  d4 {[%clk 0:02:53]} 4. Ne4 {[%clk 0:02:45]}  e5 {[%clk 0:02:50]} 5. e3 {[%clk 0:02:38]}  Nf6 {[%clk 0:02:39]} 6. Nxf6+ {[%clk 0:02:28]}  Qxf6 {[%clk 0:02:40]} 7. exd4 {[%clk 0:02:11]}  exd4 {[%clk 0:02:40]} 8. Nf3 {[%clk 0:02:11]}  Bxc5 {[%clk 0:02:38]} 9. Bg5 {[%clk 0:02:11]}  Qb6 {[%clk 0:02:32]} 10. Bd3 {[%clk 0:01:56]}  O-O {[%clk 0:02:25]} 11. O-O {[%clk 0:01:54]}  Bg4 {[%clk 0:02:21]} 12. h3 {[%clk 0:01:53]}  Bh5 {[%clk 0:02:21]} 13. Be4 {[%clk 0:01:42]}  Nc6 {[%clk 0:02:09]} 14. Qd3 {[%clk 0:01:34]}  Bg6 {[%clk 0:02:08]} 15. Bxg6 {[%clk 0:01:25]}  hxg6 {[%clk 0:02:09]} 16. Qb3 {[%clk 0:01:16]}  Qc7 {[%clk 0:01:54]} 17. Rfe1 {[%clk 0:01:15]}  Rfe8 {[%clk 0:01:52]} 18. a3 {[%clk 0:01:00]}  a6 {[%clk 0:01:51]} 19. Rad1 {[%clk 0:00:59]}  Ba7 {[%clk 0:01:45]} 20. Qd3 {[%clk 0:00:56]}  Rac8 {[%clk 0:01:35]} 21. Rxe8+ {[%clk 0:00:48]}  Rxe8 {[%clk 0:01:35]} 22. Re1 {[%clk 0:00:48]}  Rxe1+ {[%clk 0:01:12]} 23. Nxe1 {[%clk 0:00:49]}  Ne5 {[%clk 0:01:12]} 24. Qe4 {[%clk 0:00:46]}  Nc4 {[%clk 0:00:55]} 25. Nf3 {[%clk 0:00:25]}  Nd6 {[%clk 0:00:30]} 26. Qe5 {[%clk 0:00:11]}  Qc5 {[%clk 0:00:25]} 27. Bf4 {[%clk 0:00:08]}  Qxe5 {[%clk 0:00:17]} 28. Bxe5 {[%clk 0:00:09]}  Nc4 {[%clk 0:00:16]} 29. Bxd4 {[%clk 0:00:10]}  Bxd4 {[%clk 0:00:16]} 30. Nxd4 {[%clk 0:00:10]}  Nxb2 {[%clk 0:00:16]} 31. Kf1 {[%clk 0:00:10]}  Nc4 {[%clk 0:00:16]} 32. a4 {[%clk 0:00:11]}  Nb2 {[%clk 0:00:14]} 33. a5 {[%clk 0:00:11]}  Nc4 {[%clk 0:00:15]} 34. Nb3 {[%clk 0:00:12]}  Kf8 {[%clk 0:00:15]} 35. Ke2 {[%clk 0:00:12]}  Ke7 {[%clk 0:00:15]} 36. Kd3 {[%clk 0:00:13]}  Ne5+ {[%clk 0:00:14]} 37. Kd4 {[%clk 0:00:13]}  Kd6 {[%clk 0:00:15]} 38. Nc5 {[%clk 0:00:12]}  Nc6+ {[%clk 0:00:15]} 39. Kc4 {[%clk 0:00:11]}  Nxa5+ {[%clk 0:00:15]} 40. Kb4 {[%clk 0:00:11]}  Nc6+ {[%clk 0:00:15]} 41. Kc4 {[%clk 0:00:12]}  b5+ {[%clk 0:00:16]} 0-1


[Site "https://www.chess.com"]

[Event "Titled Tuesday Blitz April 18 Late 2023"]
[White "StarkyNZ"]
[Black "Sabuk, Piotr"]
[BlackFideId "1137565"]
[WhiteElo "2280"]
[BlackElo "2298"]
[Result "0-1"]
[Round "01"]
[TimeControl "180+2"]
[Date "2023.04.18"]
[WhiteClock "0:00:41"]
[BlackClock "0:00:27"]

1. d4 {[%clk 0:02:47]}  Nf6 {[%clk 0:02:59]} 2. e3 {[%clk 0:02:48]}  d5 {[%clk 0:02:57]} 3. c4 {[%clk 0:02:48]}  e6 {[%clk 0:02:55]} 4. Nc3 {[%clk 0:02:49]}  Be7 {[%clk 0:02:41]} 5. Bd3 {[%clk 0:02:49]}  O-O {[%clk 0:02:41]} 6. Nge2 {[%clk 0:02:49]}  dxc4 {[%clk 0:02:40]} 7. Bxc4 {[%clk 0:02:49]}  a6 {[%clk 0:02:41]} 8. a4 {[%clk 0:02:48]}  c5 {[%clk 0:02:41]} 9. O-O {[%clk 0:02:47]}  Nc6 {[%clk 0:02:41]} 10. d5 {[%clk 0:02:42]}  Na5 {[%clk 0:02:31]} 11. Ba2 {[%clk 0:02:38]}  c4 {[%clk 0:02:28]} 12. dxe6 {[%clk 0:02:36]}  Bxe6 {[%clk 0:02:27]} 13. Nd4 {[%clk 0:02:36]}  Bg4 {[%clk 0:02:24]} 14. f3 {[%clk 0:02:33]}  Bd7 {[%clk 0:02:24]} 15. Kh1 {[%clk 0:02:28]}  Bc5 {[%clk 0:02:22]} 16. e4 {[%clk 0:02:14]}  Qb6 {[%clk 0:02:19]} 17. Be3 {[%clk 0:01:58]}  Rad8 {[%clk 0:02:18]} 18. Nce2 {[%clk 0:01:48]}  Rfe8 {[%clk 0:02:02]} 19. Qe1 {[%clk 0:01:48]}  Bxa4 {[%clk 0:01:59]} 20. Qg3 {[%clk 0:01:48]}  Nb3 {[%clk 0:01:43]} 21. Bxb3 {[%clk 0:01:45]}  Bxb3 {[%clk 0:01:42]} 22. Nf5 {[%clk 0:01:42]}  g6 {[%clk 0:01:34]} 23. Bg5 {[%clk 0:01:24]}  Rd3 {[%clk 0:01:21]} 24. Nf4 {[%clk 0:01:21]}  Nxe4 {[%clk 0:01:20]} 25. fxe4 {[%clk 0:01:17]}  Rxg3 {[%clk 0:01:20]} 26. Nh6+ {[%clk 0:01:15]}  Kg7 {[%clk 0:01:06]} 27. hxg3 {[%clk 0:01:15]}  c3 {[%clk 0:00:59]} 28. Nd5 {[%clk 0:01:16]}  Bxd5 {[%clk 0:00:59]} 29. exd5 {[%clk 0:01:14]}  f5 {[%clk 0:00:52]} 30. bxc3 {[%clk 0:01:07]}  Bd6 {[%clk 0:00:39]} 31. Rab1 {[%clk 0:00:53]}  Qc7 {[%clk 0:00:35]} 32. g4 {[%clk 0:00:49]}  f4 {[%clk 0:00:33]} 33. c4 {[%clk 0:00:45]}  b6 {[%clk 0:00:32]} 34. Bh4 {[%clk 0:00:40]}  Kxh6 {[%clk 0:00:28]} 35. Bf6 {[%clk 0:00:41]}  g5 {[%clk 0:00:27]} 0-1


[Site "https://www.chess.com"]